[Event "57th Biel Festival MTO 2024"]
[White "Asllani,Dorian"]
[Black "Hafiz,Arif Abdul"]
[Site "Biel"]
[Round "3.31"]
[Annotator "RC"]
[Result "0-1"]
[Date "2024.07.17"]
[WhiteElo "2154"]
[BlackElo "2367"]
[PlyCount "76"]
[TimeControl "60"]

1. Nf3 {[%emt 0:0:14]} Nf6 {[%emt 0:1:22]} 2. c4 {[%emt 0:1:39]} g6 {[%emt 0:3:3]} 3. d4 {[%emt 0:3:19]} Bg7 {[%emt 0:0:10]} 4. Nc3 {[%emt 0:0:56]} d5 {[%emt 0:0:9]} 5. cxd5 {[%emt 0:0:17]} Nxd5 {[%emt 0:0:3]} 6. e3 {[%emt 0:0:11]} O-O {[%emt 0:0:47]} 7. Bc4 {[%emt 0:3:50]} Nxc3 {[%emt 0:0:52]} 8. bxc3 {[%emt 0:0:7]} c5 {[%emt 0:0:4]} 9. O-O {[%emt 0:0:33]} Nc6 {[%emt 0:1:0]} 10. Ba3 {[%emt 0:8:28]} Na5 {[%emt 0:12:33]} 11. Qe2 {[%emt 0:11:54]} Nxc4 {[%emt 0:1:8]} 12. Qxc4 {[%emt 0:0:9]} cxd4 {[%emt 0:8:48]} 13. cxd4 {[%emt 0:0:22]} Bf6 {[%emt 0:4:30]} 14. e4 {[%emt 0:11:26]} b6 {[%emt 0:17:11]} 15. h3 {[%emt 0:16:32]} Bb7 {[%emt 0:2:5]} 16. Rfe1 {[%emt 0:0:32]} Rc8 {[%emt 0:4:7]} 17. Qb3 {[%emt 0:7:42]} Qd7 {[%emt 0:6:36]} 18. Rad1 {[%emt 0:4:19]} Rfd8 {[%emt 0:0:31]} 19. Qe3 {[%emt 0:4:21]} Bg7 {[%emt 0:9:20]} 20. h4 {[%emt 0:9:8]} Qg4 {[%emt 0:10:10]} 21. d5 {[%emt 0:6:47]} Rc3 {[%emt 0:1:47]} 22. Rd3 {[%emt 0:0:16]} Rxd3 {[%emt 0:0:7]} 23. Qxd3 {[%emt 0:0:2]} Qd7 {[%emt 0:0:19]} 24. Rc1 {[%emt 0:4:30]} h6 {[%emt 0:9:5]} 25. h5 {[%emt 0:6:40]} g5 {[%emt 0:0:56]} 26. Qe3 {[%emt 0:6:25]} e6 {[%emt 0:12:20]} 27. d6 {[%emt 0:0:46]} Rc8 {[%emt 0:0:6]} 28. Rxc8+ {[%emt 0:1:24]} Bxc8 {[%emt 0:1:8]} 29. e5 {[%emt 0:1:38]} Qc6 {[%emt 0:1:30]} 30. Qd2 {[%emt 0:0:31]} g4 {[%emt 0:1:55]} 31. Nd4 {[%emt 0:0:24]} Qd5 {[%emt 0:0:1]} 32. Qc3 {[%emt 0:0:37]} Bb7 {[%emt 0:0:5]} 33. f3 {[%emt 0:0:30]} Bxe5 {[%emt 0:0:6]} 34. Bb2 {[%emt 0:0:19]} gxf3 {[%emt 0:1:30]} 35. gxf3 {[%emt 0:0:40]} Qxd6 {[%emt 0:0:9]} 36. Qe3 {[%emt 0:0:30]} Bg7 {[%emt 0:0:22]} 37. Kg2 {[%emt 0:0:29]} Qd5 {[%emt 0:0:39]} 38. Qf4 {[%emt 0:0:31]} e5 {[%emt 0:0:18]} 0-1

[Event "57th Biel Festival MTO 2024"]
[White "Narayanan,Samrug"]
[Black "Arsenie,Cristian Marc"]
[Site "Biel"]
[Round "3.32"]
[Annotator "RC"]
[Result "1/2-1/2"]
[Date "2024.07.17"]
[WhiteElo "2335"]
[BlackElo "2121"]
[PlyCount "82"]
[TimeControl "60"]

1. e4 {[%emt 0:0:3]} c5 {[%emt 0:0:6]} 2. Nf3 {[%emt 0:0:4]} d6 {[%emt 0:0:13]} 3. Bb5+ {[%emt 0:0:13]} Nd7 {[%emt 0:0:8]} 4. a4 {[%emt 0:0:5]} Ngf6 {[%emt 0:0:11]} 5. Nc3 {[%emt 0:0:3]} g6 {[%emt 0:0:13]} 6. a5 {[%emt 0:0:4]} Bg7 {[%emt 0:0:13]} 7. O-O {[%emt 0:0:7]} a6 {[%emt 0:0:11]} 8. Be2 {[%emt 0:0:4]} O-O {[%emt 0:0:13]} 9. d3 {[%emt 0:0:4]} b5 {[%emt 0:0:35]} 10. axb6 {[%emt 0:0:4]} a5 {[%emt 0:0:8]} 11. Be3 {[%emt 0:1:12]} Bb7 {[%emt 0:2:42]} 12. Qd2 {[%emt 0:0:45]} Qxb6 {[%emt 0:1:52]} 13. h3 {[%emt 0:5:33]} Bc6 {[%emt 0:2:55]} 14. Ra2 {[%emt 0:1:17]} a4 {[%emt 0:7:31]} 15. Bh6 {[%emt 0:4:18]} Bxh6 {[%emt 0:5:18]} 16. Qxh6 {[%emt 0:0:5]} Qb4 {[%emt 0:3:57]} 17. Nd1 {[%emt 0:2:48]} c4 {[%emt 0:3:39]} 18. dxc4 {[%emt 0:5:32]} Bxe4 {[%emt 0:2:56]} 19. Ne3 {[%emt 0:0:21]} Bxc2 {[%emt 0:10:39]} 20. Nxc2 {[%emt 0:13:19]} Qb3 {[%emt 0:0:15]} 21. Rfa1 {[%emt 0:3:25]} Qxc2 {[%emt 0:0:32]} 22. Nd4 {[%emt 0:3:4]} Qe4 {[%emt 0:1:54]} 23. Qd2 {[%emt 0:0:17]} Qb7 {[%emt 0:14:25]} 24. Bf3 {[%emt 0:9:49]} Ne4 {[%emt 0:0:32]} 25. Qe2 {[%emt 0:6:39]} Ndc5 {[%emt 0:1:17]} 26. Bxe4 {[%emt 0:0:20]} Nxe4 {[%emt 0:2:33]} 27. Rxa4 {[%emt 0:2:23]} Rxa4 {[%emt 0:4:46]} 28. Rxa4 {[%emt 0:0:25]} d5 {[%emt 0:3:10]} 29. cxd5 {[%emt 0:3:12]} Qxd5 {[%emt 0:0:51]} 30. Nf3 {[%emt 0:3:11]} f5 {[%emt 0:3:21]} 31. Rd4 {[%emt 0:1:37]} Qc5 {[%emt 0:3:52]} 32. b4 {[%emt 0:0:46]} Qc1+ {[%emt 0:1:58]} 33. Rd1 {[%emt 0:2:9]} Qc7 {[%emt 0:1:4]} 34. Qa2+ {[%emt 0:4:20]} Kh8 {[%emt 0:3:16]} 35. Rb1 {[%emt 0:3:6]} Nc3 {[%emt 0:2:43]} 36. Qb2 {[%emt 0:0:12]} e5 {[%emt 0:0:47]} 37. Re1 {[%emt 0:0:38]} e4 {[%emt 0:1:42]} 38. Rc1 {[%emt 0:17:41]} Rc8 {[%emt 0:2:22]} 39. b5 {[%emt 0:12:10]} Qg7 {[%emt 0:4:18]} 40. Kh1 {[%emt 0:8:22]} exf3 {[%emt 0:4:28]} 41. gxf3 {[%emt 0:50:17]} h6 {[%emt 1:0:1]} 1/2-1/2

[Event "57th Biel Festival MTO 2024"]
[White "Schnell,Simon"]
[Black "Padmini,Rout"]
[Site "Biel"]
[Round "3.33"]
[Annotator "RC"]
[Result "1-0"]
[Date "2024.07.17"]
[WhiteElo "2139"]
[BlackElo "2348"]
[PlyCount "63"]
[TimeControl "60"]

1. d4 {[%emt 0:0:4]} Nf6 {[%emt 0:0:22]} 2. c4 {[%emt 0:0:5]} g6 {[%emt 0:0:16]} 3. Nc3 {[%emt 0:0:6]} d5 {[%emt 0:0:8]} 4. cxd5 {[%emt 0:0:4]} Nxd5 {[%emt 0:0:5]} 5. e4 {[%emt 0:0:5]} Nxc3 {[%emt 0:0:5]} 6. bxc3 {[%emt 0:0:3]} Bg7 {[%emt 0:0:7]} 7. Be3 {[%emt 0:0:4]} c5 {[%emt 0:0:41]} 8. Nf3 {[%emt 0:0:6]} O-O {[%emt 0:0:50]} 9. Be2 {[%emt 0:0:7]} Qa5 {[%emt 0:3:9]} 10. O-O {[%emt 0:1:0]} Nd7 {[%emt 0:13:25]} 11. Qb3 {[%emt 0:12:10]} e6 {[%emt 0:5:38]} 12. Rfd1 {[%emt 0:14:12]} Qc7 {[%emt 0:7:9]} 13. d5 {[%emt 0:10:35]} exd5 {[%emt 0:1:5]} 14. exd5 {[%emt 0:2:24]} Qd6 {[%emt 0:0:7]} 15. Nd2 {[%emt 0:9:46]} Re8 {[%emt 0:7:3]} 16. Nc4 {[%emt 0:6:2]} Qf6 {[%emt 0:0:13]} 17. Rac1 {[%emt 0:0:37]} Nb6 {[%emt 0:10:21]} 18. Nxb6 {[%emt 0:5:39]} axb6 {[%emt 0:6:28]} 19. d6 {[%emt 0:5:18]} Bd7 {[%emt 0:16:41]} 20. Qxb6 {[%emt 0:7:22]} Rxa2 {[%emt 0:0:20]} 21. Bf3 {[%emt 0:2:51]} Rxe3 {[%emt 0:15:23]} 22. fxe3 {[%emt 0:1:8]} Qh4 {[%emt 0:0:39]} 23. Qxc5 {[%emt 0:7:49]} b6 {[%emt 0:8:15]} 24. Qd5 {[%emt 0:4:10]} Qf2+ {[%emt 0:2:22]} 25. Kh1 {[%emt 0:0:8]} Bf8 {[%emt 0:1:33]} 26. Rf1 {[%emt 0:2:6]} Qd2 {[%emt 0:0:6]} 27. Qxd2 {[%emt 0:0:25]} Rxd2 {[%emt 0:0:5]} 28. Rcd1 {[%emt 0:0:27]} Rxd1 {[%emt 0:2:24]} 29. Rxd1 {[%emt 0:0:6]} Kg7 {[%emt 0:0:4]} 30. Rb1 {[%emt 0:2:27]} Kf6 {[%emt 0:0:20]} 31. Rxb6 {[%emt 0:0:29]} Ke5 {[%emt 0:0:7]} 32. Bc6 {[%emt 0:8:29]} 1-0

[Event "57th Biel Festival MTO 2024"]
[White "Harish,Neeraj"]
[Black "Ayush Sharma"]
[Site "Biel"]
[Round "3.34"]
[Annotator "RC"]
[Result "0-1"]
[Date "2024.07.17"]
[WhiteElo "2123"]
[BlackElo "2325"]
[PlyCount "64"]
[TimeControl "60"]

1. e4 {[%emt 0:0:5]} c5 {[%emt 0:0:13]} 2. Nf3 {[%emt 0:0:9]} e6 {[%emt 0:0:26]} 3. d4 {[%emt 0:0:23]} cxd4 {[%emt 0:0:3]} 4. Nxd4 {[%emt 0:0:8]} a6 {[%emt 0:0:8]} 5. Nc3 {[%emt 0:1:4]} b5 {[%emt 0:0:18]} 6. Bd3 {[%emt 0:3:41]} Bb7 {[%emt 0:1:12]} 7. O-O {[%emt 0:0:22]} d6 {[%emt 0:3:37]} 8. a3 {[%emt 0:4:7]} Nf6 {[%emt 0:1:5]} 9. f4 {[%emt 0:2:17]} Be7 {[%emt 0:1:54]} 10. Nf3 {[%emt 0:1:57]} Nbd7 {[%emt 0:9:57]} 11. Qe2 {[%emt 0:2:17]} Nc5 {[%emt 0:16:2]} 12. Bd2 {[%emt 0:9:55]} O-O {[%emt 0:1:50]} 13. Rad1 {[%emt 0:2:19]} Rc8 {[%emt 0:5:23]} 14. Bc1 {[%emt 0:13:2]} Qc7 {[%emt 0:3:27]} 15. e5 {[%emt 0:5:26]} dxe5 {[%emt 0:11:9]} 16. fxe5 {[%emt 0:0:12]} Nxd3 {[%emt 0:3:50]} 17. Rxd3 {[%emt 0:1:57]} Nd5 {[%emt 0:2:49]} 18. Ng5 {[%emt 0:4:56]} h6 {[%emt 0:2:29]} 19. Nh3 {[%emt 0:14:39]} Qc4 {[%emt 0:3:41]} 20. Rg3 {[%emt 0:9:36]} Nxc3 {[%emt 0:6:54]} 21. Qxc4 {[%emt 0:0:26]} Rxc4 {[%emt 0:0:18]} 22. bxc3 {[%emt 0:0:10]} Bh4 {[%emt 0:6:39]} 23. Rd3 {[%emt 0:1:12]} Be4 {[%emt 0:1:27]} 24. Rd6 {[%emt 0:5:4]} Be7 {[%emt 0:0:30]} 25. Rxa6 {[%emt 0:1:10]} Bc5+ {[%emt 0:0:2]} 26. Kh1 {[%emt 0:0:11]} Rxc3 {[%emt 0:0:4]} 27. Nf2 {[%emt 0:2:6]} Bd5 {[%emt 0:0:26]} 28. Nd3 {[%emt 0:12:13]} Rxc2 {[%emt 0:0:8]} 29. Nf4 {[%emt 0:0:3]} Be4 {[%emt 0:0:25]} 30. h4 {[%emt 0:2:52]} g5 {[%emt 0:0:7]} 31. Re1 {[%emt 0:0:16]} Bb7 {[%emt 0:2:11]} 32. Ra5 {[%emt 0:0:32]} gxf4 {[%emt 0:0:9]} 0-1

[Event "57th Biel Festival MTO 2024"]
[White "Haimovich,Tal"]
[Black "Gemelli,Romain"]
[Site "Biel"]
[Round "3.35"]
[Annotator "RC"]
[Result "1-0"]
[Date "2024.07.17"]
[WhiteElo "2330"]
[BlackElo "2101"]
[PlyCount "153"]
[TimeControl "60"]

1. Nf3 {[%emt 0:0:5]} Nf6 {[%emt 0:0:10]} 2. b3 {[%emt 0:0:45]} d5 {[%emt 0:0:24]} 3. Bb2 {[%emt 0:0:8]} Bf5 {[%emt 0:1:13]} 4. g3 {[%emt 0:1:50]} e6 {[%emt 0:0:35]} 5. Bg2 {[%emt 0:0:25]} Be7 {[%emt 0:0:26]} 6. O-O {[%emt 0:0:25]} h6 {[%emt 0:0:55]} 7. d3 {[%emt 0:0:40]} c5 {[%emt 0:0:42]} 8. Nbd2 {[%emt 0:0:52]} Nc6 {[%emt 0:0:6]} 9. Ne5 {[%emt 0:3:15]} Nxe5 {[%emt 0:0:47]} 10. Bxe5 {[%emt 0:0:9]} O-O {[%emt 0:0:54]} 11. e4 {[%emt 0:2:11]} Bg6 {[%emt 0:9:0]} 12. Qe2 {[%emt 0:7:43]} Qb6 {[%emt 0:8:44]} 13. h3 {[%emt 0:21:21]} Rfe8 {[%emt 0:4:23]} 14. a4 {[%emt 0:1:17]} Rad8 {[%emt 0:3:19]} 15. Rae1 {[%emt 0:8:8]} Qb4 {[%emt 0:11:52]} 16. Bb2 {[%emt 0:15:57]} dxe4 {[%emt 0:12:43]} 17. Nxe4 {[%emt 0:0:9]} Nxe4 {[%emt 0:0:10]} 18. Bxe4 {[%emt 0:0:11]} Bxe4 {[%emt 0:0:6]} 19. Qxe4 {[%emt 0:0:4]} Qxe4 {[%emt 0:0:23]} 20. Rxe4 {[%emt 0:0:2]} Rd5 {[%emt 0:1:9]} 21. Rfe1 {[%emt 0:0:15]} h5 {[%emt 0:1:51]} 22. Kf1 {[%emt 0:0:19]} Red8 {[%emt 0:0:45]} 23. Ke2 {[%emt 0:0:52]} g6 {[%emt 0:1:18]} 24. Kd2 {[%emt 0:1:7]} Bf8 {[%emt 0:1:37]} 25. Bf6 {[%emt 0:13:42]} R8d7 {[%emt 0:1:6]} 26. R1e2 {[%emt 0:1:22]} Bg7 {[%emt 0:6:29]} 27. Bxg7 {[%emt 0:0:36]} Kxg7 {[%emt 0:0:3]} 28. Kc3 {[%emt 0:0:8]} Kf6 {[%emt 0:1:3]} 29. h4 {[%emt 0:10:31]} Ke7 {[%emt 0:3:38]} 30. f4 {[%emt 0:0:32]} Kd6 {[%emt 0:0:50]} 31. b4 {[%emt 0:0:51]} cxb4+ {[%emt 0:0:15]} 32. Kxb4 {[%emt 0:2:0]} Rc7 {[%emt 0:1:16]} 33. Rc4 {[%emt 0:6:51]} Rxc4+ {[%emt 0:3:16]} 34. Kxc4 {[%emt 0:0:2]} Rc5+ {[%emt 0:1:38]} 35. Kb3 {[%emt 0:1:11]} f6 {[%emt 0:11:49]} 36. c4 {[%emt 0:2:3]} e5 {[%emt 0:1:13]} 37. Re4 {[%emt 0:3:20]} Rc6 {[%emt 0:1:38]} 38. a5 {[%emt 0:4:3]} b6 {[%emt 0:1:25]} 39. fxe5+ {[%emt 0:0:36]} fxe5 {[%emt 0:0:13]} 40. d4 {[%emt 0:0:30]} exd4 {[%emt 0:0:26]} 41. Rxd4+ {[%emt 0:50:2]} Ke6 {[%emt 0:50:52]} 42. Rd5 {[%emt 0:4:26]} Rd6 {[%emt 0:7:38]} 43. Rg5 {[%emt 0:0:0]} Kf6 {[%emt 0:0:0]} 44. c5 {[%emt 0:0:0]} bxc5 {[%emt 0:0:0]} 45. Kc4 {[%emt 0:0:0]} Rd1 {[%emt 0:0:0]} 46. Rxc5 {[%emt 0:0:0]} Rg1 {[%emt 0:0:0]} 47. Rg5 {[%emt 0:0:0]} Rb1 {[%emt 0:0:0]} 48. Rd5 {[%emt 0:0:0]} Rb2 {[%emt 0:0:0]} 49. Rg5 {[%emt 0:0:0]} Rb1 {[%emt 0:0:0]} 50. Kc5 {[%emt 0:0:0]} Rb2 {[%emt 0:0:0]} 51. Kc6 {[%emt 0:0:0]} Rb3 {[%emt 0:0:0]} 52. Kc7 {[%emt 0:0:0]} Rb1 {[%emt 0:0:0]} 53. Kc6 {[%emt 0:0:11]} Rb3 {[%emt 0:0:0]} 54. g4 {[%emt 0:1:15]} hxg4 {[%emt 0:0:0]} 55. Rxg4 {[%emt 0:0:2]} a6 {[%emt 0:0:0]} 56. Rf4+ {[%emt 0:0:24]} Ke7 {[%emt 0:0:0]} 57. Rc4 {[%emt 0:0:32]} Rb5 {[%emt 0:0:0]} 58. Rc5 {[%emt 0:0:14]} Rb4 {[%emt 0:0:0]} 59. h5 {[%emt 0:1:15]} gxh5 {[%emt 0:0:0]} 60. Rxh5 {[%emt 0:0:3]} Ke6 {[%emt 0:0:0]} 61. Rh6+ {[%emt 0:16:49]} Ke7 {[%emt 0:5:7]} 62. Rh7+ {[%emt 0:3:8]} Ke6 {[%emt 0:0:12]} 63. Rh5 {[%emt 0:0:0]} Ke7 {[%emt 0:0:0]} 64. Kc7 {[%emt 0:0:0]} Rc4+ {[%emt 0:0:0]} 65. Kb7 {[%emt 0:0:0]} Kd7 {[%emt 0:0:0]} 66. Rd5+ {[%emt 0:0:0]} Ke6 {[%emt 0:0:0]} 67. Rd1 {[%emt 0:0:0]} Rb4+ {[%emt 0:0:0]} 68. Kxa6 {[%emt 0:0:0]} Ke7 {[%emt 0:0:0]} 69. Ka7 {[%emt 0:0:0]} Rb2 {[%emt 0:0:0]} 70. Rd5 {[%emt 0:0:0]} Rb1 {[%emt 0:0:0]} 71. Rh5 {[%emt 0:3:53]} Kd7 {[%emt 0:0:0]} 72. Rh7+ {[%emt 0:0:9]} Kc8 {[%emt 0:0:0]} 73. Rh6 {[%emt 0:0:14]} Rb7+ {[%emt 0:0:0]} 74. Ka6 {[%emt 0:0:14]} Rb1 {[%emt 0:0:0]} 75. Rb6 {[%emt 0:1:13]} Rxb6+ {[%emt 0:0:21]} 76. axb6 {[%emt 0:0:8]} Kb8 {[%emt 0:0:4]} 77. b7 {[%emt 0:0:5]} 1-0

[Event "57th Biel Festival MTO 2024"]
[White "Emmenecker,Pierre-Antoine"]
[Black "Altantuya,Boldbaatar"]
[Site "Biel"]
[Round "3.36"]
[Annotator "RC"]
[Result "1-0"]
[Date "2024.07.17"]
[WhiteElo "2306"]
[BlackElo "2107"]
[PlyCount "111"]
[TimeControl "60"]

1. e4 {[%emt 0:2:42]} c5 {[%emt 0:0:23]} 2. Nf3 {[%emt 0:0:7]} e6 {[%emt 0:0:4]} 3. b3 {[%emt 0:0:8]} d5 {[%emt 0:0:26]} 4. exd5 {[%emt 0:0:10]} Qxd5 {[%emt 0:3:31]} 5. Nc3 {[%emt 0:3:11]} Qd8 {[%emt 0:0:21]} 6. Bb5+ {[%emt 0:9:16]} Bd7 {[%emt 0:1:57]} 7. Bb2 {[%emt 0:3:13]} Nf6 {[%emt 0:1:38]} 8. Qe2 {[%emt 0:1:54]} Nc6 {[%emt 0:16:52]} 9. O-O-O {[%emt 0:6:8]} Qc7 {[%emt 0:13:57]} 10. d4 {[%emt 0:20:35]} cxd4 {[%emt 0:4:33]} 11. Nxd4 {[%emt 0:1:49]} Qf4+ {[%emt 0:2:1]} 12. Kb1 {[%emt 0:17:33]} Be7 {[%emt 0:11:36]} 13. Nxc6 {[%emt 0:12:6]} bxc6 {[%emt 0:3:39]} 14. Rxd7 {[%emt 0:10:2]} Nxd7 {[%emt 0:9:14]} 15. Bxc6 {[%emt 0:0:10]} Rd8 {[%emt 0:0:5]} 16. Rd1 {[%emt 0:1:41]} Qc7 {[%emt 0:5:44]} 17. Qb5 {[%emt 0:1:58]} O-O {[%emt 0:3:23]} 18. Bxd7 {[%emt 0:3:59]} Qxh2 {[%emt 0:2:53]} 19. Qf1 {[%emt 0:3:29]} Bf6 {[%emt 0:4:47]} 20. Rd3 {[%emt 0:0:39]} a6 {[%emt 0:7:49]} 21. g3 {[%emt 0:3:34]} Qh5 {[%emt 0:1:55]} 22. Nd1 {[%emt 0:1:36]} Bxb2 {[%emt 0:1:48]} 23. Nxb2 {[%emt 0:0:13]} e5 {[%emt 0:0:27]} 24. Nc4 {[%emt 0:1:42]} e4 {[%emt 0:1:39]} 25. Rd1 {[%emt 0:0:25]} Kh8 {[%emt 0:1:2]} 26. g4 {[%emt 0:1:4]} Qh4 {[%emt 0:1:44]} 27. Ne3 {[%emt 0:1:37]} a5 {[%emt 0:1:7]} 28. Rd5 {[%emt 0:0:34]} Qe7 {[%emt 0:2:13]} 29. Qd1 {[%emt 0:0:25]} Qh4 {[%emt 0:3:39]} 30. Rh5 {[%emt 0:1:59]} Qf6 {[%emt 0:3:24]} 31. Qh1 {[%emt 0:0:17]} h6 {[%emt 0:0:6]} 32. g5 {[%emt 0:1:25]} Qb6 {[%emt 0:1:31]} 33. gxh6 {[%emt 0:0:28]} g6 {[%emt 0:0:20]} 34. Rd5 {[%emt 0:0:5]} f5 {[%emt 0:0:27]} 35. Qh4 {[%emt 0:1:5]} Qf6 {[%emt 0:0:42]} 36. Qf4 {[%emt 0:0:23]} Rf7 {[%emt 0:0:40]} 37. Be6 {[%emt 0:0:22]} Rff8 {[%emt 0:0:39]} 38. Qc7 {[%emt 0:0:40]} Rxd5 {[%emt 0:0:39]} 39. Nxd5 {[%emt 0:0:27]} Qd4 {[%emt 0:0:8]} 40. Qe7 {[%emt 0:0:40]} Qd1+ {[%emt 0:0:47]} 41. Kb2 {[%emt 0:50:30]} Qd4+ {[%emt 0:50:13]} 42. c3 {[%emt 0:0:0]} Qd2+ {[%emt 0:0:0]} 43. Ka3 {[%emt 0:0:0]} Qxh6 {[%emt 0:0:0]} 44. Nf4 {[%emt 0:0:0]} Ra8 {[%emt 0:0:0]} 45. Qf6+ {[%emt 0:0:0]} Kh7 {[%emt 0:0:0]} 46. Bf7 {[%emt 0:0:0]} a4 {[%emt 0:0:0]} 47. Bxg6+ {[%emt 0:0:0]} Kg8 {[%emt 0:0:0]} 48. Bf7+ {[%emt 0:0:0]} Kh7 {[%emt 0:0:0]} 49. Qxf5+ {[%emt 0:0:0]} Kh8 {[%emt 0:0:0]} 50. Qe5+ {[%emt 0:0:0]} Qg7 {[%emt 0:0:0]} 51. Qxe4 {[%emt 0:1:24]} Ra6 {[%emt 0:0:0]} 52. Ng6+ {[%emt 0:1:15]} Kh7 {[%emt 0:0:0]} 53. Ne5+ {[%emt 0:1:7]} Kh8 {[%emt 0:0:0]} 54. Qh4+ {[%emt 0:0:37]} Rh6 {[%emt 0:0:0]} 55. Qd8+ {[%emt 0:0:14]} Kh7 {[%emt 0:0:0]} 56. Bg6+ {[%emt 0:0:39]} 1-0

[Event "57th Biel Festival MTO 2024"]
[White "Coles,Robin"]
[Black "Gloeckler,Christian"]
[Site "Biel"]
[Round "3.37"]
[Annotator "RC"]
[Result "0-1"]
[Date "2024.07.17"]
[WhiteElo "2084"]
[BlackElo "2304"]
[PlyCount "214"]
[TimeControl "60"]

1. e4 {[%emt 0:3:14]} c5 {[%emt 0:0:10]} 2. Nf3 {[%emt 0:0:4]} d6 {[%emt 0:0:13]} 3. Bb5+ {[%emt 0:0:5]} Nd7 {[%emt 0:0:11]} 4. c4 {[%emt 0:0:5]} Ngf6 {[%emt 0:1:49]} 5. Nc3 {[%emt 0:0:9]} g6 {[%emt 0:0:51]} 6. h3 {[%emt 0:3:0]} Bg7 {[%emt 0:1:10]} 7. d3 {[%emt 0:2:43]} O-O {[%emt 0:1:18]} 8. Ba4 {[%emt 0:0:4]} Ne5 {[%emt 0:5:38]} 9. O-O {[%emt 0:5:47]} Nxf3+ {[%emt 0:1:44]} 10. Qxf3 {[%emt 0:0:2]} Rb8 {[%emt 0:11:17]} 11. Qe2 {[%emt 0:3:50]} Bd7 {[%emt 0:1:4]} 12. Bxd7 {[%emt 0:3:25]} Nxd7 {[%emt 0:1:14]} 13. f4 {[%emt 0:1:17]} a6 {[%emt 0:1:51]} 14. a4 {[%emt 0:4:2]} Ra8 {[%emt 0:14:39]} 15. Be3 {[%emt 0:7:44]} Nb8 {[%emt 0:1:1]} 16. Qf2 {[%emt 0:5:32]} Nc6 {[%emt 0:1:5]} 17. f5 {[%emt 0:8:0]} Rb8 {[%emt 0:10:59]} 18. Nd5 {[%emt 0:8:17]} e6 {[%emt 0:13:51]} 19. f6 {[%emt 0:5:34]} exd5 {[%emt 0:6:10]} 20. fxg7 {[%emt 0:0:24]} Kxg7 {[%emt 0:0:41]} 21. Qd2 {[%emt 0:12:22]} dxe4 {[%emt 0:9:31]} 22. Bh6+ {[%emt 0:2:53]} Kg8 {[%emt 0:0:9]} 23. Bxf8 {[%emt 0:0:46]} Qxf8 {[%emt 0:0:10]} 24. Rae1 {[%emt 0:2:31]} exd3 {[%emt 0:2:50]} 25. Qxd3 {[%emt 0:0:59]} Ne5 {[%emt 0:6:20]} 26. Qd5 {[%emt 0:0:45]} Qe7 {[%emt 0:2:17]} 27. Rd1 {[%emt 0:0:41]} Rd8 {[%emt 0:0:33]} 28. Rfe1 {[%emt 0:0:51]} Re8 {[%emt 0:0:33]} 29. Kh1 {[%emt 0:1:47]} Kf8 {[%emt 0:5:19]} 30. b3 {[%emt 0:2:49]} Kg7 {[%emt 0:1:57]} 31. Qxd6 {[%emt 0:4:25]} Qxd6 {[%emt 0:1:7]} 32. Rxd6 {[%emt 0:0:6]} Nxc4 {[%emt 0:1:35]} 33. Rxg6+ {[%emt 0:4:1]} hxg6 {[%emt 0:0:11]} 34. Rxe8 {[%emt 0:0:5]} Na5 {[%emt 0:1:6]} 35. Re3 {[%emt 0:0:55]} Kf6 {[%emt 0:2:31]} 36. Kg1 {[%emt 0:1:48]} b5 {[%emt 0:0:59]} 37. Kf2 {[%emt 0:4:48]} b4 {[%emt 0:0:58]} 38. Ke2 {[%emt 0:3:29]} Nc6 {[%emt 0:1:23]} 39. Kd3 {[%emt 0:3:11]} Ne5+ {[%emt 0:0:37]} 40. Ke4 {[%emt 0:3:51]} Ke6 {[%emt 0:0:57]} 41. Re1 {[%emt 0:15:20]} f6 {[%emt 0:9:33]} 42. g4 {[%emt 0:8:35]} c4 {[%emt 0:13:47]} 43. bxc4 {[%emt 0:3:39]} Nd7 {[%emt 0:7:10]} 44. Kd4+ {[%emt 0:3:25]} Kd6 {[%emt 0:0:11]} 45. h4 {[%emt 0:6:2]} Ne5 {[%emt 0:1:21]} 46. Rb1 {[%emt 0:7:3]} Nc6+ {[%emt 0:1:35]} 47. Ke4 {[%emt 0:2:22]} Kc5 {[%emt 0:1:1]} 48. h5 {[%emt 0:1:4]} Ne5 {[%emt 0:1:47]} 49. g5 {[%emt 0:4:26]} gxh5 {[%emt 0:1:37]} 50. gxf6 {[%emt 0:0:23]} Nf7 {[%emt 0:0:12]} 51. Rc1 {[%emt 0:2:35]} b3 {[%emt 0:5:15]} 52. Kf5 {[%emt 0:1:16]} Nd6+ {[%emt 0:0:36]} 53. Kg6 {[%emt 0:1:28]} h4 {[%emt 0:1:54]} 54. Rd1 {[%emt 0:1:0]} Nxc4 {[%emt 0:2:39]} 55. Rc1 {[%emt 0:0:24]} Kb4 {[%emt 0:1:28]} 56. Re1 {[%emt 0:2:4]} Nd6 {[%emt 0:1:14]} 57. Re4+ {[%emt 0:0:5]} Ka3 {[%emt 0:0:54]} 58. Rxh4 {[%emt 0:0:37]} b2 {[%emt 0:0:47]} 59. Rh1 {[%emt 0:0:5]} Kxa4 {[%emt 0:0:28]} 60. Rd1 {[%emt 0:1:29]} a5 {[%emt 0:2:58]} 61. Rxd6 {[%emt 0:4:22]} b1=Q+ {[%emt 0:0:17]} 62. Kg7 {[%emt 0:2:18]} Qb2 {[%emt 0:3:35]} 63. Kf7 {[%emt 0:2:43]} Kb5 {[%emt 0:1:1]} 64. Ke7 {[%emt 0:0:13]} Qe5+ {[%emt 0:3:53]} 65. Re6 {[%emt 0:0:31]} Qc7+ {[%emt 0:0:10]} 66. Ke8 {[%emt 0:0:5]} Qc4 {[%emt 0:3:19]} 67. Ke7 {[%emt 0:2:16]} Qh4 {[%emt 0:0:58]} 68. Ke8 {[%emt 0:0:25]} Qc4 {[%emt 0:3:15]} 69. Ke7 {[%emt 0:0:3]} Qc5+ {[%emt 0:2:51]} 70. Ke8 {[%emt 0:0:33]} Kc4 {[%emt 0:0:28]} 71. f7 {[%emt 0:1:23]} Kd5 {[%emt 0:1:48]} 72. Rg6 {[%emt 0:1:23]} Qc2 {[%emt 0:1:8]} 73. Rd6+ {[%emt 0:2:13]} Kxd6 {[%emt 0:0:38]} 74. f8=Q+ {[%emt 0:0:2]} Kc6 {[%emt 0:0:27]} 75. Qf3+ {[%emt 0:0:45]} Kb6 {[%emt 0:0:12]} 76. Kf8 {[%emt 0:1:19]} a4 {[%emt 0:0:32]} 77. Qf6+ {[%emt 0:0:22]} Qc6 {[%emt 0:0:13]} 78. Qb2+ {[%emt 0:0:34]} Ka6 {[%emt 0:1:11]} 79. Qe2+ {[%emt 0:1:42]} Qb5 {[%emt 0:0:13]} 80. Qe6+ {[%emt 0:0:55]} Ka5 {[%emt 0:0:8]} 81. Kg7 {[%emt 0:0:37]} Qb7+ {[%emt 0:1:4]} 82. Kh8 {[%emt 0:0:39]} Qb2+ {[%emt 0:0:34]} 83. Kh7 {[%emt 0:0:7]} Kb4 {[%emt 0:1:11]} 84. Qb6+ {[%emt 0:0:25]} Ka3 {[%emt 0:0:10]} 85. Qc5+ {[%emt 0:0:44]} Ka2 {[%emt 0:0:23]} 86. Qc4+ {[%emt 0:0:21]} Qb3 {[%emt 0:0:9]} 87. Qe2+ {[%emt 0:0:8]} Ka1 {[%emt 0:0:9]} 88. Kh6 {[%emt 0:0:47]} Qh3+ {[%emt 0:1:13]} 89. Kg5 {[%emt 0:0:12]} Qg3+ {[%emt 0:0:47]} 90. Kh5 {[%emt 0:0:1]} Qf4 {[%emt 0:0:51]} 91. Qd1+ {[%emt 0:0:32]} Kb2 {[%emt 0:0:18]} 92. Qe2+ {[%emt 0:0:7]} Kc3 {[%emt 0:0:33]} 93. Qe1+ {[%emt 0:0:28]} Kc4 {[%emt 0:0:54]} 94. Qe6+ {[%emt 0:0:42]} Kc5 {[%emt 0:0:35]} 95. Qc8+ {[%emt 0:0:27]} Kb6 {[%emt 0:0:26]} 96. Qc3 {[%emt 0:1:5]} Qf5+ {[%emt 0:0:27]} 97. Kh4 {[%emt 0:0:52]} Qc5 {[%emt 0:0:18]} 98. Qb2+ {[%emt 0:0:48]} Ka5 {[%emt 0:0:15]} 99. Kg3 {[%emt 0:0:46]} Qd6+ {[%emt 0:1:10]} 100. Kf3 {[%emt 0:0:50]} Qd5+ {[%emt 0:0:22]} 101. Kf2 {[%emt 0:0:38]} Qc5+ {[%emt 0:0:29]} 102. Ke2 {[%emt 0:0:31]} a3 {[%emt 0:0:36]} 103. Qa2 {[%emt 0:0:30]} Qe5+ {[%emt 0:0:30]} 104. Kd3 {[%emt 0:0:38]} Qg3+ {[%emt 0:0:23]} 105. Kc2 {[%emt 0:0:15]} Qg2+ {[%emt 0:0:19]} 106. Kb3 {[%emt 0:0:45]} Qf3+ {[%emt 0:0:8]} 107. Kc2 {[%emt 0:0:1]} Qe2+ {[%emt 0:0:12]} 0-1